[Event "Juniorallsvenskan 2019, Division 1 and 2"]
[Site "Molnlycke kulturhus, Biblioteksgatan 2, Molnlycke, Sweden"]
[Date "2019.11.24"]
[Round "4.5"]
[White "Sorensen, Hampus"]
[Black "Jogstad, Martin"]
[Result "1/2-1/2"]
[TimeControl "90 minutes + 30 seconds per move from move one"]
[WhiteTitle "FM"]
[BlackTitle "FM"]
[WhiteFideId "8703884"]
[BlackFideId "1715364"]
[WhiteElo "2365"]
[BlackElo "2305"]

1. d4 {[%clk 01:30:59]} e6 {[%clk 01:24:12]} {[%emt 00:06:35]} 2. c4 {[%clk
01:31:14]} {[%emt 00:00:27]} Nf6 {[%clk 01:24:36]} {[%emt 00:00:07]} 3. Nf3
{[%clk 01:31:32]} {[%emt 00:00:12]} d5 {[%clk 01:25:02]} {[%emt 00:00:04]} 4.
Bg5 {[%clk 01:31:24]} {[%emt 00:00:38]} Bb4+ {[%clk 01:24:48]} {[%emt
00:00:43]} 5. Nbd2 {[%clk 01:30:36]} {[%emt 00:01:18]} dxc4 {[%clk 01:23:28]}
{[%emt 00:01:50]} 6. Qa4+ {[%clk 01:30:27]} {[%emt 00:00:40]} Nc6 {[%clk
01:23:42]} {[%emt 00:00:16]} 7. e3 {[%clk 01:30:30]} {[%emt 00:00:26]} Qd5
{[%clk 01:24:06]} {[%emt 00:00:06]} 8. Bxf6 {[%clk 01:30:28]} {[%emt 00:00:33]}
b5 {[%clk 01:24:34]} {[%emt 00:00:02]} 9. Qc2 {[%clk 01:28:43]} {[%emt
00:02:14]} gxf6 {[%clk 01:25:02]} {[%emt 00:00:02]} 10. O-O-O {[%clk 01:26:44]}
{[%emt 00:02:29]} Bxd2+ {[%clk 01:11:35]} {[%emt 00:13:57]} 11. Rxd2 {[%clk
01:12:17]} {[%emt 00:14:57]} Nb4 {[%clk 01:11:21]} {[%emt 00:00:44]} 12. Qb1
{[%clk 01:11:58]} {[%emt 00:00:50]} Bb7 {[%clk 01:11:44]} {[%emt 00:00:06]} 13.
a3 {[%clk 01:10:24]} {[%emt 00:02:04]} Na6 {[%clk 01:06:30]} {[%emt 00:05:44]}
14. Be2 {[%clk 00:58:38]} {[%emt 00:12:16]} Ke7 {[%clk 00:46:48]} {[%emt
00:20:10]} 15. Ne1 {[%clk 00:54:21]} {[%emt 00:04:48]} c5 {[%clk 00:26:10]}
{[%emt 00:21:08]} 16. Bf3 {[%clk 00:48:40]} {[%emt 00:06:12]} Qd7 {[%clk
00:26:33]} {[%emt 00:00:05]} 17. d5 {[%clk 00:45:51]} {[%emt 00:03:20]} Rad8
{[%clk 00:26:13]} {[%emt 00:00:50]} 18. e4 {[%clk 00:42:53]} {[%emt 00:03:28]}
Qc7 {[%clk 00:24:00]} {[%emt 00:02:42]} 19. Nc2 {[%clk 00:40:24]} {[%emt
00:03:00]} Nb8 {[%clk 00:23:36]} {[%emt 00:00:53]} 20. Ne3 {[%clk 00:38:04]}
{[%emt 00:02:51]} Qf4 {[%clk 00:14:29]} {[%emt 00:09:36]} 21. e5 {[%clk
00:30:59]} {[%emt 00:07:36]} exd5 {[%clk 00:13:08]} {[%emt 00:01:51]} 22. exf6+
{[%clk 00:23:32]} {[%emt 00:07:57]} Kxf6 {[%clk 00:12:48]} {[%emt 00:00:49]} 23.
Rhd1 {[%clk 00:22:10]} {[%emt 00:01:53]} d4 {[%clk 00:12:14]} {[%emt 00:01:05]}
24. Bxb7 {[%clk 00:21:11]} {[%emt 00:01:29]} dxe3 {[%clk 00:12:30]} {[%emt
00:00:13]} 25. fxe3 {[%clk 00:21:38]} {[%emt 00:00:04]} Qxe3 {[%clk 00:12:26]}
{[%emt 00:00:34]} 26. Qe4 {[%clk 00:21:05]} {[%emt 00:01:02]} Qxe4 {[%clk
00:09:54]} {[%emt 00:03:02]} 27. Bxe4 {[%clk 00:21:34]} {[%emt 00:00:02]} Rxd2
{[%clk 00:09:20]} {[%emt 00:01:04]} 28. Rxd2 {[%clk 00:22:02]} {[%emt
00:00:01]} h6 {[%clk 00:03:54]} {[%emt 00:05:55]} 29. a4 {[%clk 00:21:10]}
{[%emt 00:01:23]} a6 {[%clk 00:03:40]} {[%emt 00:00:44]} 30. Bb7 {[%clk
00:19:52]} {[%emt 00:01:48]} Re8 {[%clk 00:03:30]} {[%emt 00:00:39]} 31. Rf2+
{[%clk 00:16:45]} {[%emt 00:03:38]} Kg7 {[%clk 00:03:25]} {[%emt 00:00:35]} 32.
Rd2 {[%clk 00:15:05]} {[%emt 00:02:10]} Re7 {[%clk 00:03:36]} {[%emt 00:00:18]}
33. Bf3 {[%clk 00:15:33]} {[%emt 00:00:02]} Nd7 {[%clk 00:02:23]} {[%emt
00:01:43]} 34. Rd6 {[%clk 00:15:20]} {[%emt 00:00:43]} Ne5 {[%clk 00:02:39]}
{[%emt 00:00:14]} 35. Rxa6 {[%clk 00:15:21]} {[%emt 00:00:29]} Nd3+ {[%clk
00:02:41]} {[%emt 00:00:28]} 36. Kd2 {[%clk 00:15:45]} {[%emt 00:00:06]} b4
{[%clk 00:01:56]} {[%emt 00:01:15]} 37. Kc2 {[%clk 00:14:48]} {[%emt 00:01:28]}
Ne1+ {[%clk 00:01:17]} {[%emt 00:01:08]} 38. Kd2 {[%clk 00:15:06]} {[%emt
00:00:12]} Nd3 {[%clk 00:01:46]} {[%emt 00:00:01]} 39. Kc2 {[%clk 00:15:35]}
{[%emt 00:00:01]} Ne1+ {[%clk 00:02:10]} {[%emt 00:00:05]} 40. Kd2 {[%clk
00:16:02]} {[%emt 00:00:03]} Nxf3+ {[%clk 00:02:09]} {[%emt 00:00:31]} 41. gxf3
{[%clk 00:16:31]} {[%emt 00:00:01]} Re5 {[%clk 00:01:53]} {[%emt 00:00:46]} 42.
Rc6 {[%clk 00:16:11]} {[%emt 00:00:50]} Rh5 {[%clk 00:02:11]} {[%emt 00:00:12]}
43. h4 {[%clk 00:15:20]} {[%emt 00:01:21]} Rxh4 {[%clk 00:01:37]} {[%emt
00:01:04]} 44. Rxc5 {[%clk 00:15:42]} {[%emt 00:00:08]} c3+ {[%clk 00:00:57]}
{[%emt 00:01:10]} 45. bxc3 {[%clk 00:16:08]} {[%emt 00:00:04]} bxc3+ {[%clk
00:01:25]} {[%emt 00:00:02]} 46. Rxc3 {[%clk 00:16:28]} {[%emt 00:00:10]} Rxa4
{[%clk 00:01:54]} {[%emt 00:00:01]} 47. Ke3 {[%clk 00:16:48]} {[%emt 00:00:11]}
Kg6 {[%clk 00:02:07]} {[%emt 00:00:17]} 48. Kf2 {[%clk 00:17:10]} {[%emt
00:00:08]} Kg5 {[%clk 00:02:13]} {[%emt 00:00:22]} 49. Rc7 {[%clk 00:16:39]}
{[%emt 00:01:03]} Rf4 {[%clk 00:02:00]} {[%emt 00:00:42]} 50. Kg3 {[%clk
00:16:49]} {[%emt 00:00:21]} h5 {[%clk 00:01:31]} {[%emt 00:00:59]} 51. Rc8
{[%clk 00:16:01]} {[%emt 00:01:18]} Rf6 {[%clk 00:01:28]} {[%emt 00:00:32]} 52.
Rc5+ {[%clk 00:15:59]} {[%emt 00:00:33]} Rf5 {[%clk 00:01:43]} {[%emt
00:00:14]} 53. Rc8 {[%clk 00:15:16]} {[%emt 00:01:14]} h4+ {[%clk 00:01:20]}
{[%emt 00:00:53]} 54. Kg2 {[%clk 00:15:38]} {[%emt 00:00:09]} Rf4 {[%clk
00:01:30]} {[%emt 00:00:19]} 55. Rg8+ {[%clk 00:15:19]} {[%emt 00:00:50]} Kf5
{[%clk 00:01:35]} {[%emt 00:00:25]} 56. Ra8 {[%clk 00:14:55]} {[%emt 00:00:54]}
f6 {[%clk 00:00:54]} {[%emt 00:01:10]} 57. Ra5+ {[%clk 00:15:08]} {[%emt
00:00:18]} Kg6 {[%clk 00:01:21]} {[%emt 00:00:03]} 58. Rb5 {[%clk 00:15:02]}
{[%emt 00:00:36]} Rd4 {[%clk 00:01:29]} {[%emt 00:00:22]} 59. Rb8 {[%clk
00:12:50]} {[%emt 00:02:44]} Kg5 {[%clk 00:01:03]} {[%emt 00:00:53]} 60. Rg8+
{[%clk 00:12:43]} {[%emt 00:00:38]} Kf4 {[%clk 00:01:18]} {[%emt 00:00:14]} 61.
Rg4+ {[%clk 00:07:21]} {[%emt 00:05:53]} Ke3 {[%clk 00:01:25]} {[%emt
00:00:23]} 62. Kh3 {[%clk 00:07:17]} {[%emt 00:00:35]} Rd1 {[%clk 00:01:14]}
{[%emt 00:00:41]} 63. Kxh4 {[%clk 00:05:43]} {[%emt 00:02:04]} f5 {[%clk
00:00:36]} {[%emt 00:01:08]} 64. Ra4 {[%clk 00:04:44]} {[%emt 00:01:29]} Rg1
{[%clk 00:00:55]} {[%emt 00:00:11]} 65. Ra3+ {[%clk 00:03:52]} {[%emt
00:01:23]} Kf4 {[%clk 00:01:21]} {[%emt 00:00:03]} 66. Ra4+ {[%clk 00:04:15]}
{[%emt 00:00:07]} Kxf3 {[%clk 00:01:44]} {[%emt 00:00:07]} 67. Ra3+ {[%clk
00:04:44]} {[%emt 00:00:02]} Kf4 {[%clk 00:01:50]} {[%emt 00:00:22]} 68. Ra4+
{[%clk 00:05:11]} {[%emt 00:00:04]} Ke3 {[%clk 00:01:57]} {[%emt 00:00:22]} 69.
Ra3+ {[%clk 00:05:38]} {[%emt 00:00:04]} Kd4 {[%clk 00:02:21]} {[%emt
00:00:05]} 70. Ra4+ {[%clk 00:06:04]} {[%emt 00:00:05]} Ke3 {[%clk 00:01:38]}
{[%emt 00:01:13]} 71. Ra3+ {[%clk 00:05:24]} {[%emt 00:01:10]} Kf2 {[%clk
00:01:46]} {[%emt 00:00:21]} 72. Ra2+ {[%clk 00:05:42]} {[%emt 00:00:13]} Kf3
{[%clk 00:02:10]} {[%emt 00:00:06]} 73. Ra3+ {[%clk 00:06:06]} {[%emt
00:00:06]} Kg2 {[%clk 00:02:32]} {[%emt 00:00:07]} 74. Rg3+ {[%clk 00:06:28]}
{[%emt 00:00:08]} Kf2 {[%clk 00:02:57]} {[%emt 00:00:06]} 75. Rxg1 {[%clk
00:06:54]} {[%emt 00:00:04]} Kxg1 {[%clk 00:03:23]} {[%emt 00:00:04]} 76. Kg5
{[%clk 00:07:22]} {[%emt 00:00:03]} Kf2 {[%clk 00:03:47]} {[%emt 00:00:06]} 77.
Kxf5 {[%clk 00:07:47]} {[%emt 00:00:05]} 1/2-1/2

[Event "Juniorallsvenskan 2019, Division 1 and 2"]
[Site "Molnlycke kulturhus, Biblioteksgatan 2, Molnlycke, Sweden"]
[Date "2019.11.24"]
[Round "4.6"]
[White "Bensryd, Hampus"]
[Black "Crevatin, Leo"]
[Result "0-1"]
[TimeControl "90 minutes + 30 seconds per move from move one"]
[BlackTitle "CM"]
[WhiteFideId "1738330"]
[BlackFideId "1726307"]
[WhiteElo "1977"]
[BlackElo "2231"]

1. e4 {[%clk 01:30:46]} {[%emt 00:00:05]} c5 {[%clk 01:25:24]} {[%emt
00:05:44]} 2. Nc3 {[%clk 01:30:57]} {[%emt 00:00:19]} Nc6 {[%clk 01:25:48]}
{[%emt 00:00:06]} 3. Bb5 {[%clk 01:31:00]} {[%emt 00:00:27]} Nd4 {[%clk
01:26:16]} {[%emt 00:00:02]} 4. Nf3 {[%clk 01:30:53]} {[%emt 00:00:38]} a6
{[%clk 01:26:39]} {[%emt 00:00:07]} 5. Bd3 {[%clk 01:31:02]} {[%emt 00:00:20]}
g6 {[%clk 01:24:56]} {[%emt 00:02:14]} 6. Nxd4 {[%clk 01:25:22]} {[%emt
00:06:10]} cxd4 {[%clk 01:25:23]} {[%emt 00:00:03]} 7. Ne2 {[%clk 01:25:43]}
{[%emt 00:00:08]} Bg7 {[%clk 01:23:37]} {[%emt 00:02:16]} 8. O-O {[%clk
01:23:41]} {[%emt 00:02:32]} d5 {[%clk 01:21:54]} {[%emt 00:02:13]} 9. f4
{[%clk 01:19:02]} {[%emt 00:05:08]} dxe4 {[%clk 01:20:10]} {[%emt 00:02:14]} 10.
Bxe4 {[%clk 01:19:20]} {[%emt 00:00:12]} f5 {[%clk 01:17:38]} {[%emt 00:03:01]}
11. Bd3 {[%clk 01:16:48]} {[%emt 00:03:01]} Nf6 {[%clk 01:18:01]} {[%emt
00:00:08]} 12. c3 {[%clk 01:13:54]} {[%emt 00:03:24]} dxc3 {[%clk 01:16:09]}
{[%emt 00:02:23]} 13. dxc3 {[%clk 01:14:12]} {[%emt 00:00:12]} O-O {[%clk
01:13:01]} {[%emt 00:03:37]} 14. Bc4+ {[%clk 01:05:10]} {[%emt 00:09:32]} Kh8
{[%clk 01:13:07]} {[%emt 00:00:25]} 15. Qxd8 {[%clk 01:00:17]} {[%emt
00:05:21]} Rxd8 {[%clk 01:12:33]} {[%emt 00:01:04]} 16. Be3 {[%clk 00:56:53]}
{[%emt 00:03:55]} b5 {[%clk 01:09:30]} {[%emt 00:03:33]} 17. Bb3 {[%clk
00:54:15]} {[%emt 00:03:07]} Bb7 {[%clk 01:07:52]} {[%emt 00:02:08]} 18. Rad1
{[%clk 00:51:01]} {[%emt 00:03:45]} Nd5 {[%clk 01:05:32]} {[%emt 00:02:50]} 19.
Bf2 {[%clk 00:46:25]} {[%emt 00:05:06]} Rd6 {[%clk 00:57:54]} {[%emt 00:08:05]}
20. Bc5 {[%clk 00:43:40]} {[%emt 00:03:17]} Rd7 {[%clk 00:57:33]} {[%emt
00:00:50]} 21. Rd3 {[%clk 00:37:56]} {[%emt 00:06:15]} Rad8 {[%clk 00:57:14]}
{[%emt 00:00:49]} 22. Rfd1 {[%clk 00:38:06]} {[%emt 00:00:21]} e6 {[%clk
00:48:52]} {[%emt 00:08:51]} 23. Bd4 {[%clk 00:35:37]} {[%emt 00:02:58]} Bxd4+
{[%clk 00:48:00]} {[%emt 00:01:22]} 24. Rxd4 {[%clk 00:35:55]} {[%emt
00:00:12]} Kg7 {[%clk 00:47:54]} {[%emt 00:00:36]} 25. Kf2 {[%clk 00:34:27]}
{[%emt 00:01:58]} Kf6 {[%clk 00:48:14]} {[%emt 00:00:11]} 26. Nc1 {[%clk
00:32:49]} {[%emt 00:02:08]} Nb6 {[%clk 00:43:34]} {[%emt 00:05:11]} 27. Rxd7
{[%clk 00:27:05]} {[%emt 00:06:14]} Rxd7 {[%clk 00:43:49]} {[%emt 00:00:16]} 28.
Rxd7 {[%clk 00:27:22]} {[%emt 00:00:13]} Nxd7 {[%clk 00:44:17]} {[%emt
00:00:02]} 29. Nd3 {[%clk 00:27:14]} {[%emt 00:00:38]} Be4 {[%clk 00:44:00]}
{[%emt 00:00:46]} 30. Ne1 {[%clk 00:23:42]} {[%emt 00:04:03]} Nc5 {[%clk
00:42:43]} {[%emt 00:01:46]} 31. Ke3 {[%clk 00:21:51]} {[%emt 00:02:21]} e5
{[%clk 00:41:55]} {[%emt 00:01:19]} 32. g3 {[%clk 00:21:34]} {[%emt 00:00:47]}
g5 {[%clk 00:41:41]} {[%emt 00:00:44]} 33. h4 {[%clk 00:19:11]} {[%emt
00:02:53]} exf4+ {[%clk 00:41:57]} {[%emt 00:00:14]} 34. gxf4 {[%clk 00:19:26]}
{[%emt 00:00:15]} gxh4 {[%clk 00:42:21]} {[%emt 00:00:06]} 35. Kf2 {[%clk
00:18:44]} {[%emt 00:01:12]} Nxb3 {[%clk 00:36:01]} {[%emt 00:06:50]} 36. axb3
{[%clk 00:18:57]} {[%emt 00:00:16]} Bd5 {[%clk 00:36:25]} {[%emt 00:00:07]} 37.
b4 {[%clk 00:17:56]} {[%emt 00:01:31]} Be4 {[%clk 00:36:33]} {[%emt 00:00:22]}
38. Nf3 {[%clk 00:15:13]} {[%emt 00:03:13]} Bxf3 {[%clk 00:36:38]} {[%emt
00:00:25]} 39. Kxf3 {[%clk 00:15:40]} {[%emt 00:00:03]} Ke6 {[%clk 00:37:03]}
{[%emt 00:00:04]} 40. Kg2 {[%clk 00:16:02]} {[%emt 00:00:08]} Kd5 {[%clk
00:37:30]} {[%emt 00:00:02]} 41. Kh3 {[%clk 00:16:27]} {[%emt 00:00:06]} Ke4
{[%clk 00:37:34]} {[%emt 00:00:26]} 42. Kxh4 {[%clk 00:16:25]} {[%emt
00:00:33]} Kxf4 {[%clk 00:38:00]} {[%emt 00:00:04]} 43. b3 {[%clk 00:16:49]}
{[%emt 00:00:05]} Ke4 {[%clk 00:34:47]} {[%emt 00:03:43]} 44. c4 {[%clk
00:17:05]} {[%emt 00:00:14]} f4 {[%clk 00:35:03]} {[%emt 00:00:13]} 45. c5
{[%clk 00:17:04]} {[%emt 00:00:32]} f3 {[%clk 00:35:29]} {[%emt 00:00:05]} 46.
c6 {[%clk 00:16:50]} {[%emt 00:00:44]} f2 {[%clk 00:35:55]} {[%emt 00:00:04]}
47. c7 {[%clk 00:17:17]} {[%emt 00:00:03]} f1=Q {[%clk 00:36:21]} {[%emt
00:00:05]} 48. c8=Q {[%clk 00:17:37]} {[%emt 00:00:09]} Qf4 {[%clk 00:36:41]}
{[%emt 00:00:11]} 49. Kh5 {[%clk 00:17:18]} {[%emt 00:00:50]} Qf5+ {[%clk
00:37:05]} {[%emt 00:00:06]} 50. Qxf5+ {[%clk 00:17:38]} {[%emt 00:00:10]} Kxf5
{[%clk 00:37:33]} {[%emt 00:00:02]} 51. Kh6 {[%clk 00:18:01]} {[%emt 00:00:07]}
Ke5 {[%clk 00:38:00]} {[%emt 00:00:03]} 0-1

[Event "Juniorallsvenskan 2019, Division 1 and 2"]
[Site "Molnlycke kulturhus, Biblioteksgatan 2, Molnlycke, Sweden"]
[Date "2019.11.24"]
[Round "4.7"]
[White "Narva, David"]
[Black "Ulles, Jean-Clement"]
[Result "1-0"]
[TimeControl "90 minutes + 30 seconds per move from move one"]
[WhiteFideId "24128856"]
[BlackFideId "26007029"]
[WhiteElo "1979"]
[BlackElo "1943"]

1. e4 {[%clk 01:30:55]} {[%emt 00:00:05]} e5 {[%clk 01:30:49]} {[%emt
00:00:11]} 2. Nf3 {[%clk 01:31:19]} {[%emt 00:00:05]} Nc6 {[%clk 01:31:14]}
{[%emt 00:00:05]} 3. Bb5 {[%clk 01:31:24]} {[%emt 00:00:25]} a6 {[%clk
01:30:56]} {[%emt 00:00:49]} 4. Ba4 {[%clk 01:30:49]} {[%emt 00:01:04]} Nf6
{[%clk 01:30:56]} {[%emt 00:00:29]} 5. d3 {[%clk 01:31:11]} {[%emt 00:00:08]}
b5 {[%clk 01:29:45]} {[%emt 00:01:41]} 6. Bb3 {[%clk 01:31:35]} {[%emt
00:00:06]} Be7 {[%clk 01:29:56]} {[%emt 00:00:19]} 7. O-O {[%clk 01:31:48]}
{[%emt 00:00:17]} d6 {[%clk 01:29:17]} {[%emt 00:01:09]} 8. c3 {[%clk
01:32:01]} {[%emt 00:00:17]} O-O {[%clk 01:28:23]} {[%emt 00:01:24]} 9. Re1
{[%clk 01:32:12]} {[%emt 00:00:18]} Na5 {[%clk 01:25:30]} {[%emt 00:03:24]} 10.
Bc2 {[%clk 01:32:36]} {[%emt 00:00:06]} c5 {[%clk 01:25:42]} {[%emt 00:00:18]}
11. Nbd2 {[%clk 01:31:03]} {[%emt 00:02:03]} Nc6 {[%clk 01:19:18]} {[%emt
00:06:55]} 12. Nf1 {[%clk 01:31:04]} {[%emt 00:00:29]} Qc7 {[%clk 01:18:32]}
{[%emt 00:01:16]} 13. Ne3 {[%clk 01:20:09]} {[%emt 00:11:25]} h6 {[%clk
01:03:20]} {[%emt 00:15:42]} 14. Nd5 {[%clk 01:12:21]} {[%emt 00:08:18]} Nxd5
{[%clk 00:59:06]} {[%emt 00:04:44]} 15. exd5 {[%clk 01:12:46]} {[%emt
00:00:05]} Nb8 {[%clk 00:57:58]} {[%emt 00:01:37]} 16. d4 {[%clk 01:11:09]}
{[%emt 00:02:07]} Nd7 {[%clk 00:49:53]} {[%emt 00:08:35]} 17. Qe2 {[%clk
01:05:52]} {[%emt 00:05:46]} cxd4 {[%clk 00:42:33]} {[%emt 00:07:51]} 18. cxd4
{[%clk 01:06:16]} {[%emt 00:00:06]} Bb7 {[%clk 00:41:03]} {[%emt 00:01:59]} 19.
dxe5 {[%clk 01:05:36]} {[%emt 00:01:11]} dxe5 {[%clk 00:39:10]} {[%emt
00:02:23]} 20. Nd4 {[%clk 00:43:01]} {[%emt 00:23:05]} Bb4 {[%clk 00:27:11]}
{[%emt 00:12:29]} 21. Bxh6 {[%clk 00:21:59]} {[%emt 00:21:32]} gxh6 {[%clk
00:15:14]} {[%emt 00:12:28]} 22. Qg4+ {[%clk 00:21:37]} {[%emt 00:00:51]} Kh8
{[%clk 00:15:30]} {[%emt 00:00:15]} 23. Qf5 {[%clk 00:21:25]} {[%emt 00:00:43]}
Qxc2 {[%clk 00:11:34]} {[%emt 00:04:26]} 24. Nxc2 {[%clk 00:21:48]} {[%emt
00:00:06]} Bxe1 {[%clk 00:11:57]} {[%emt 00:00:08]} 25. Qxd7 {[%clk 00:21:23]}
{[%emt 00:00:55]} Bxf2+ {[%clk 00:08:59]} {[%emt 00:03:28]} 26. Kxf2 {[%clk
00:21:46]} {[%emt 00:00:06]} Rac8 {[%clk 00:09:20]} {[%emt 00:00:09]} 27. Ne3
{[%clk 00:21:54]} {[%emt 00:00:22]} Ba8 {[%clk 00:09:01]} {[%emt 00:00:50]} 28.
Qe7 {[%clk 00:22:07]} {[%emt 00:00:16]} f5 {[%clk 00:08:50]} {[%emt 00:00:42]}
29. Qxe5+ {[%clk 00:21:39]} {[%emt 00:00:59]} Kh7 {[%clk 00:08:47]} {[%emt
00:00:32]} 30. Qe7+ {[%clk 00:21:54]} {[%emt 00:00:15]} Kh8 {[%clk 00:09:08]}
{[%emt 00:00:10]} 31. Qe6 {[%clk 00:22:06]} {[%emt 00:00:17]} Kh7 {[%clk
00:08:37]} {[%emt 00:01:01]} 32. Nxf5 {[%clk 00:21:34]} {[%emt 00:01:02]} Rc2+
{[%clk 00:08:34]} {[%emt 00:00:34]} 33. Kg1 {[%clk 00:21:31]} {[%emt 00:00:34]}
1-0